bitfinex-derivatives/quotes_BTCF0:USTF0_20251229
["timestamp","ask_amount","ask_price","bid_price","bid_amount"]
[1767004119577,0.0113716,88042.0,88021.0,0.15372]
[1767004119874,0.0113716,88042.0,88030.0,0.18432731]
[1767004120081,0.00017036,88047.0,88027.0,0.05704]
[1767004120277,0.00017036,88047.0,88028.0,0.00017038]
[1767004121174,0.011372,88040.0,88028.0,0.00017038]
[1767004124588,0.0113722,88037.0,88028.0,0.00017038]
[1767004125280,0.00017036,88047.0,88028.0,0.00017038]
[1767004125281,0.0113718,88041.0,88028.0,0.00017038]
[1767004126476,0.18432731,88040.0,88028.0,8e-08]
[1767004126683,0.0113731,88031.0,88018.0,0.057]
[1767004126990,0.0113733,88029.0,88018.0,0.057]
[1767004127284,0.0113729,88032.0,88018.0,0.057]
[1767004127488,0.15364,88039.0,88018.0,0.057]
[1767004127681,0.0113733,88029.0,88020.0,0.00017038]
[1767004128480,0.0113736,88027.0,88020.0,0.00017038]
[1767004128884,0.24132731,88030.0,88010.0,0.057]
[1767004129778,0.00017038,88029.0,88011.0,0.00017038]
[1767004131189,0.0113739,88025.0,88011.0,0.00017038]
[1767004131588,0.0113739,88025.0,88012.0,0.01136]
[1767004132087,0.0113746,88019.0,88007.0,0.09664]
[1767004133094,0.0113746,88019.0,88005.0,0.057]
[1767004133295,0.02495235,88018.0,88005.0,0.057]
[1767004133494,0.0113746,88019.0,88005.0,0.057]
[1767004133797,0.02495239,88018.0,88005.0,0.057]
[1767004133999,0.057,88020.0,88005.0,0.057]
[1767004134302,0.02495226,88019.0,88005.0,0.057]
[1767004134498,0.02495226,88018.0,88005.0,0.057]
[1767004134690,0.057,88020.0,88005.0,0.057]
[1767004134890,0.02495637,88019.0,88005.0,0.057]
[1767004135101,0.02495637,88018.0,88005.0,0.057]
[1767004135399,0.02495637,88017.0,88006.0,0.0113762]
[1767004135599,0.057,88020.0,88006.0,0.0113762]
[1767004135800,0.057,88024.0,88012.0,0.0113754]
[1767004136902,0.057,88026.0,88012.0,0.0113754]
[1767004137509,0.05225,88026.0,88016.0,0.0113749]
[1767004137813,0.05208,88026.0,88016.0,0.0113749]
[1767004138306,0.00017038,88029.0,88018.0,0.0113746]
[1767004138513,3.8e-07,88029.0,88018.0,0.0113746]
[1767004139106,3.8e-07,88029.0,88020.0,0.0113744]
[1767004139309,3.8e-07,88029.0,88022.0,0.0113741]
[1767004139504,3.8e-07,88029.0,88014.0,0.057]
[1767004139710,3.8e-07,88029.0,88025.0,0.0113736]
[1767004140009,0.0113716,88043.0,88027.0,0.0113734]
[1767004140211,0.0113716,88043.0,88014.0,0.057]
[1767004140212,0.0113718,88041.0,88014.0,0.057]
[1767004140400,0.0113718,88041.0,88025.0,0.0113737]
[1767004141009,0.06080451,88056.0,88027.0,0.0113734]
[1767004141010,0.00017038,88042.0,88027.0,0.0113734]
[1767004141415,0.06080451,88056.0,88027.0,0.0113734]
[1767004141416,0.057,88050.0,88033.0,0.0113727]
[1767004142014,0.0683706,88050.0,88033.0,0.0113727]
[1767004142407,0.05717038,88050.0,88033.0,0.01154308]
[1767004143409,3.8e-07,88050.0,88034.0,0.17058279]
[1767004143616,3.8e-07,88050.0,88038.0,0.011372]
[1767004143906,3.8e-07,88050.0,88040.0,0.0113718]
[1767004144115,3.8e-07,88050.0,88041.0,0.01777696]
[1767004144303,3.8e-07,88050.0,88042.0,0.01777696]
[1767004144506,3.8e-07,88050.0,88043.0,0.01777696]
[1767004144705,3.8e-07,88050.0,88044.0,0.01777696]
[1767004144901,3.8e-07,88050.0,88045.0,0.01777696]
[1767004145110,0.09664,88063.0,88046.0,0.01777696]
[1767004145310,0.09664,88063.0,88034.0,0.057]
[1767004145311,0.09664,88063.0,88051.0,0.0113704]
[1767004145507,0.057,88066.0,88052.0,0.01777696]
[1767004145713,0.15364,88066.0,88053.0,0.01777696]
[1767004145912,0.15364,88066.0,88054.0,0.01777696]
[1767004146106,0.15364,88066.0,88055.0,0.01777696]
[1767004146304,0.15364,88066.0,88056.0,0.01777696]
[1767004146504,0.15364,88066.0,88051.0,0.00017038]
[1767004147813,0.0247301,88065.0,88051.0,0.00017038]
[1767004148014,0.0247301,88064.0,88051.0,0.00017038]
[1767004148318,0.0247301,88063.0,88051.0,0.00017038]
[1767004148513,0.00017038,88069.0,88051.0,0.00017038]
[1767004150514,0.0113683,88068.0,88051.0,0.00017038]
[1767004152413,0.0113688,88064.0,88051.0,0.00017038]
[1767004153311,0.0113683,88068.0,88051.0,0.00017038]
[1767004154113,0.06080451,88082.0,88055.0,0.0113698]
[1767004154316,0.06080451,88084.0,88056.0,0.15364]
[1767004154518,0.0113677,88073.0,88056.0,0.18364]
[1767004155820,0.0113677,88073.0,88056.0,0.15364]
[1767004156824,0.057,88086.0,88056.0,0.18364]
[1767004156825,0.0113671,88077.0,88056.0,0.18364]
[1767004157123,0.0113674,88074.0,88056.0,0.18364]
[1767004157306,0.057,88086.0,88056.0,0.1950097]
[1767004157620,0.0113671,88077.0,88056.0,0.18364]
[1767004158012,0.0113671,88077.0,88056.0,0.15364]
[1767004158313,0.057,88086.0,88056.0,0.15364]
[1767004158511,0.0113688,88064.0,88051.0,0.00017038]
[1767004158913,0.0113688,88064.0,88052.0,0.057]
[1767004162515,0.0113684,88067.0,88052.0,0.057]
[1767004163918,0.0113687,88065.0,88052.0,0.057]
[1767004164717,0.011369,88063.0,88052.0,0.057]
[1767004165124,0.0113685,88066.0,88052.0,0.057]
[1767004166124,0.02459253,88065.0,88052.0,0.057]
[1767004166323,0.0113685,88066.0,88052.0,0.057]
[1767004166626,0.02447955,88065.0,88052.0,0.057]
[1767004166815,0.0113685,88066.0,88052.0,0.057]
[1767004167122,0.02447963,88065.0,88052.0,0.057]
[1767004167325,0.02447963,88064.0,88052.0,0.057]
[1767004167527,0.0113685,88066.0,88052.0,0.057]
[1767004167825,0.0244904,88065.0,88052.0,0.057]
[1767004168026,0.0244904,88064.0,88052.0,0.057]
[1767004168224,0.0244904,88063.0,88052.0,0.057]
[1767004168524,0.0113685,88066.0,88052.0,0.057]
[1767004168822,0.0245082,88065.0,88052.0,0.057]
[1767004169010,0.0245082,88064.0,88052.0,0.057]
[1767004169216,0.0245082,88063.0,88052.0,0.057]
[1767004169423,0.0245082,88062.0,88052.0,0.057]
[1767004169623,0.0113685,88066.0,88052.0,0.057]
[1767004169926,0.02452892,88065.0,88052.0,0.057]
[1767004170222,0.0113685,88066.0,88052.0,0.057]
[1767004170524,0.09664,88075.0,88052.0,0.057]
[1767004170916,0.0113691,88062.0,88052.0,0.057]
[1767004171520,0.0113686,88065.0,88051.0,0.00017038]
[1767004171721,0.0113686,88065.0,88052.0,0.1536]
[1767004172027,0.0113676,88073.0,88052.0,0.1536]
[1767004172325,0.0113692,88061.0,88052.0,0.1536]
[1767004172526,0.0113676,88073.0,88052.0,0.1536]
[1767004172715,0.0113687,88065.0,88052.0,0.1536]
[1767004173325,0.0113678,88071.0,88053.0,0.0113701]
[1767004174420,0.1080074,88075.0,88055.0,0.0113698]
[1767004174920,0.1080074,88075.0,88057.0,0.0113695]
[1767004175927,0.0113677,88073.0,88054.0,0.0113699]
[1767004176123,0.09664,88075.0,88054.0,0.0113699]
[1767004176327,0.0113679,88071.0,88054.0,0.0113699]
[1767004176524,0.0113675,88074.0,88056.0,0.0113697]
[1767004177429,0.0113678,88072.0,88056.0,0.0113697]
[1767004177819,0.09664,88075.0,88052.0,0.1536]
[1767004178020,0.0113679,88071.0,88054.0,0.0113699]
[1767004178221,0.0113679,88071.0,88053.0,0.15356]
[1767004178533,0.0113681,88069.0,88053.0,0.15356]
[1767004179730,0.0113681,88069.0,88053.0,0.1649301]
[1767004182228,0.02446654,88068.0,88053.0,0.1649301]
[1767004182534,0.02446654,88067.0,88053.0,0.1649301]
[1767004182733,0.02446654,88066.0,88053.0,0.1649301]
[1767004182933,0.02446654,88065.0,88053.0,0.1649301]
[1767004183132,0.02446654,88064.0,88053.0,0.1649301]
[1767004183337,0.02446654,88063.0,88053.0,0.1649301]
[1767004183532,0.00102654,88062.0,88053.0,0.1649301]
[1767004183732,0.0113681,88069.0,88053.0,0.1649301]
[1767004184438,0.0113681,88069.0,88055.0,0.0113699]
[1767004184829,0.06080451,88074.0,88053.0,0.15356]
[1767004184830,0.0113685,88067.0,88053.0,0.15356]
[1767004187741,0.06080451,88073.0,88053.0,0.15356]
[1767004188235,0.0113686,88066.0,88053.0,0.15356]
[1767004189840,0.0113682,88069.0,88053.0,0.15356]
[1767004190939,0.0113682,88069.0,88054.0,0.0177726]
[1767004191142,0.0113682,88069.0,88055.0,0.0177726]
[1767004191339,0.0113682,88069.0,88056.0,0.0177726]
[1767004191540,0.0113682,88069.0,88057.0,0.0177726]
[1767004191742,0.0113682,88069.0,88058.0,0.0177726]
[1767004191934,0.0113682,88069.0,88053.0,0.15356]
[1767004192734,0.0113684,88067.0,88053.0,0.15356]
[1767004194847,0.15744451,88075.0,88053.0,0.15356]
[1767004195039,0.0113682,88069.0,88053.0,0.15356]
[1767004195240,0.15744451,88075.0,88053.0,0.15356]
[1767004195546,0.02438108,88074.0,88053.0,0.15356]
[1767004195745,0.0113683,88068.0,88053.0,0.15356]
[1767004195951,0.02438108,88067.0,88053.0,0.15356]
[1767004196145,0.0113683,88068.0,88053.0,0.15356]
[1767004196146,0.02438108,88066.0,88053.0,0.15356]
[1767004196345,0.02438108,88065.0,88053.0,0.15356]
[1767004196650,0.02438108,88064.0,88053.0,0.15356]
[1767004196948,0.02438108,88063.0,88053.0,0.15356]
[1767004197148,0.02438108,88062.0,88053.0,0.15356]
[1767004197351,0.02438108,88061.0,88053.0,0.15356]
[1767004197551,0.02438108,88060.0,88053.0,0.15356]
[1767004197851,0.02438108,88059.0,88053.0,0.15356]
[1767004198041,0.02438108,88058.0,88053.0,0.15356]
[1767004198242,0.0113684,88067.0,88053.0,0.15356]
[1767004198447,0.0113689,88063.0,88053.0,0.15356]
[1767004198648,0.02418196,88062.0,88053.0,0.15356]
[1767004198847,0.02418196,88061.0,88053.0,0.15356]
[1767004199050,0.02418196,88060.0,88053.0,0.15356]
[1767004199248,0.02418196,88059.0,88053.0,0.15356]
[1767004199451,0.02418196,88058.0,88053.0,0.15356]
[1767004199639,0.0113689,88063.0,88053.0,0.15356]
[1767004199843,0.0241825,88062.0,88053.0,0.15356]
[1767004200043,0.0241825,88061.0,88053.0,0.15356]
[1767004200252,0.18415673,88070.0,88053.0,0.15356]
[1767004200253,0.0241825,88060.0,88053.0,0.15356]
[1767004200453,0.0241825,88059.0,88053.0,0.15356]
[1767004200746,0.0241825,88058.0,88053.0,0.15356]
[1767004200946,0.0113685,88066.0,88053.0,0.15356]
[1767004201347,0.0113683,88068.0,88054.0,0.05696]
[1767004201549,0.18415673,88064.0,88053.0,0.05696]
[1767004201747,0.0113693,88060.0,88052.0,0.05696]
[1767004202654,0.18415673,88062.0,88052.0,0.05696]
[1767004202856,0.15356,88061.0,88029.0,0.0113732]
[1767004203055,0.18415673,88040.0,88030.0,0.05696]
[1767004203349,0.0113711,88046.0,88030.0,0.05696]
[1767004203654,0.0113707,88049.0,88030.0,0.05696]
[1767004203950,0.011371,88047.0,88031.0,0.00017038]
[1767004204456,0.0113715,88043.0,88031.0,0.00017038]
[1767004205057,0.0113711,88046.0,88031.0,0.00017038]
[1767004205255,0.0113714,88044.0,88031.0,0.00017038]
[1767004205962,0.0113717,88042.0,88031.0,0.00017038]
[1767004206654,0.0113712,88045.0,88031.0,0.00017038]
[1767004206855,0.00017038,88048.0,88035.0,0.0113724]
[1767004207054,0.04793038,88050.0,88037.0,0.0113721]
[1767004207248,0.06080451,88065.0,88037.0,0.0113721]
[1767004207249,0.0113692,88061.0,88040.0,0.18415673]
[1767004207557,0.0113694,88059.0,88036.0,0.057]
[1767004207857,0.1536,88058.0,88037.0,0.0113721]
[1767004208059,0.00017038,88056.0,88037.0,0.0113721]
[1767004209556,0.0113699,88055.0,88037.0,0.0113721]
[1767004210055,0.00017038,88056.0,88036.0,0.057]
[1767004210257,0.0113699,88055.0,88040.0,0.18415673]
[1767004210457,0.00017038,88056.0,88036.0,0.057]
[1767004211955,0.0113704,88052.0,88036.0,0.057]
[1767004213266,0.0113699,88055.0,88036.0,0.057]
[1767004213565,0.02411638,88054.0,88036.0,0.057]
[1767004213760,0.0113699,88055.0,88036.0,0.057]
[1767004213965,0.02411638,88054.0,88036.0,0.057]
[1767004214161,0.0113699,88055.0,88036.0,0.057]
[1767004214363,0.02411571,88054.0,88036.0,0.057]
[1767004214666,0.02411059,88053.0,88036.0,0.0683723]
[1767004214867,0.02411059,88052.0,88038.0,0.011372]
[1767004215061,0.00017038,88056.0,88038.0,0.011372]
[1767004215268,0.02411226,88055.0,88038.0,0.011372]
[1767004215462,0.02411226,88054.0,88040.0,0.18415673]
[1767004216967,0.0113702,88053.0,88040.0,0.18415673]
[1767004217267,0.02411226,88052.0,88040.0,0.18415673]
[1767004217467,0.01137,88054.0,88040.0,0.18415673]
[1767004217662,0.02412533,88053.0,88040.0,0.18415673]
[1767004217863,0.02412533,88052.0,88040.0,0.18415673]
[1767004218065,0.01137,88054.0,88040.0,0.18415673]
[1767004218264,0.02412528,88053.0,88040.0,0.18415673]
[1767004218465,0.02412528,88052.0,88040.0,0.18415673]
[1767004218765,0.02412528,88051.0,88040.0,0.18415673]
[1767004219067,0.00017038,88056.0,88040.0,0.18415673]
[1767004219269,0.02412809,88055.0,88040.0,0.19552853]
[1767004219464,0.02412809,88054.0,88040.0,0.19552853]
[1767004219662,0.02412809,88053.0,88040.0,0.19552853]
[1767004219863,0.02412809,88052.0,88040.0,0.19552853]
[1767004220164,0.02412809,88051.0,88040.0,0.19552853]
[1767004220357,0.0113699,88055.0,88040.0,0.18415673]
[1767004220555,0.02413216,88054.0,88040.0,0.18415673]
[1767004220755,0.02413216,88053.0,88040.0,0.18415673]
[1767004220959,0.02413216,88052.0,88040.0,0.18415673]
[1767004221169,0.02413216,88051.0,88040.0,0.18415673]
[1767004221371,0.0113699,88055.0,88040.0,0.18415673]
[1767004221560,0.02413868,88054.0,88040.0,0.18415673]
[1767004221859,0.02413868,88053.0,88040.0,0.18415673]
[1767004222056,0.02413868,88052.0,88036.0,0.0683723]
[1767004222256,0.02413868,88051.0,88040.0,0.18415673]
[1767004222459,0.0113699,88055.0,88040.0,0.18415673]
[1767004222666,0.02414876,88054.0,88040.0,0.18415673]
[1767004222869,0.02414876,88053.0,88040.0,0.18415673]
[1767004223071,0.02414876,88052.0,88040.0,0.18415673]
[1767004223256,0.02414876,88051.0,88040.0,0.18415673]
[1767004223456,0.02414876,88050.0,88040.0,0.18415673]
[1767004223755,0.0113702,88053.0,88040.0,0.18415673]
[1767004223956,0.02414998,88052.0,88040.0,0.18415673]
[1767004224160,0.02414998,88051.0,88040.0,0.18415673]
[1767004224363,0.01154028,88056.0,88041.0,0.00572]
[1767004224564,0.02414977,88055.0,88042.0,0.05696]
[1767004224871,0.02414977,88054.0,88042.0,0.05696]
[1767004225072,0.02414977,88053.0,88042.0,0.05696]
[1767004225969,0.00017038,88056.0,88042.0,0.05696]
[1767004225970,0.0113711,88046.0,88042.0,0.05696]
[1767004226173,0.0113714,88044.0,88031.0,0.00017038]
[1767004226366,0.02415905,88043.0,88032.0,0.05696]
[1767004226573,0.02415905,88042.0,88032.0,0.05696]
[1767004226768,0.0113714,88044.0,88032.0,0.05696]
[1767004226969,0.02423443,88043.0,88032.0,0.05696]
[1767004227170,0.02423443,88042.0,88032.0,0.05696]
[1767004227369,0.0113709,88048.0,88032.0,0.05696]
[1767004227570,0.02423593,88047.0,88032.0,0.05696]
[1767004227767,0.02423593,88046.0,88032.0,0.05696]
[1767004227975,0.02423593,88045.0,88032.0,0.05696]
[1767004228174,0.02423593,88044.0,88032.0,0.05696]
[1767004228477,0.02423593,88043.0,88032.0,0.05696]
[1767004228679,0.02423593,88042.0,88032.0,0.05696]
[1767004228876,0.02423593,88041.0,88032.0,0.05696]
[1767004229176,0.0113709,88048.0,88032.0,0.05696]
[1767004229362,0.0242443,88047.0,88032.0,0.05696]
[1767004229567,0.0356154,88046.0,88032.0,0.05696]
[1767004229774,0.0242443,88045.0,88032.0,0.05696]
[1767004229974,0.0242443,88044.0,88032.0,0.05696]
[1767004230175,0.0242443,88043.0,88032.0,0.05696]
[1767004230479,0.0242443,88042.0,88032.0,0.05696]
[1767004230672,0.0242443,88041.0,88028.0,0.0113733]
[1767004230977,0.0113711,88046.0,88029.0,0.05696]
[1767004231173,0.02425156,88045.0,88029.0,0.05696]
[1767004231378,0.02425156,88044.0,88030.0,0.0113731]
[1767004231681,0.02425156,88043.0,88030.0,0.0113731]
[1767004231869,0.02425156,88042.0,88030.0,0.0113731]
[1767004232069,0.02425156,88041.0,88030.0,0.0113731]
[1767004232270,0.02425156,88040.0,88030.0,0.0113731]
[1767004232472,0.0683307,88049.0,88030.0,0.0113731]
[1767004232673,0.02426366,88048.0,88030.0,0.19552983]
[1767004232880,0.02426366,88047.0,88030.0,0.19552983]
[1767004233080,0.02426366,88046.0,88030.0,0.19552983]
[1767004233380,0.02426366,88045.0,88030.0,0.19552983]
[1767004233676,0.02426366,88044.0,88030.0,0.19552983]
[1767004233876,0.02426366,88043.0,88030.0,0.19552983]
[1767004234069,0.02426366,88042.0,88032.0,0.0113728]
[1767004234271,0.02426366,88041.0,88032.0,0.0113728]
[1767004234477,0.05696,88050.0,88036.0,0.0113722]
[1767004234777,0.05696,88050.0,88031.0,0.0113729]
[1767004234973,0.05696,88050.0,88033.0,0.0113727]
[1767004235475,0.05696,88050.0,88032.0,0.0113728]
[1767004235675,0.05696,88050.0,88034.0,0.0113725]
[1767004238182,0.05696,88050.0,88036.0,0.0113723]
[1767004238777,0.05696,88050.0,88033.0,0.0113726]
[1767004239682,0.05696,88050.0,88035.0,0.0113724]
[1767004240789,0.05696,88050.0,88037.0,0.0113722]
[1767004240972,0.05696,88050.0,88033.0,0.0113727]
[1767004241886,0.06097489,88056.0,88033.0,0.0113727]
[1767004242076,0.1536,88055.0,88033.0,0.0113727]
[1767004242375,0.0113702,88053.0,88033.0,0.0113727]
[1767004243178,0.0113702,88053.0,88030.0,0.18415673]
[1767004244188,0.0113702,88053.0,88034.0,0.0113725]
[1767004244687,0.18415673,88050.0,88031.0,0.011373]
[1767004244879,0.0113711,88046.0,88028.0,0.01154368]
[1767004246090,0.05696,88048.0,88030.0,0.0113731]
[1767004246588,0.02408147,88047.0,88030.0,0.0113731]
[1767004246795,0.02408147,88046.0,88032.0,0.0113728]
[1767004246976,0.02408147,88045.0,88032.0,0.0113728]
[1767004247180,0.02408147,88044.0,88032.0,0.0113728]
[1767004247483,0.02408147,88043.0,88032.0,0.0113728]
[1767004247789,0.02408147,88042.0,88032.0,0.0113728]
[1767004247980,0.02408147,88041.0,88032.0,0.0113728]
[1767004248182,0.02408147,88040.0,88029.0,0.0113732]
[1767004248481,0.02408147,88039.0,88029.0,0.0113732]
[1767004248676,0.0683308,88048.0,88029.0,0.0113732]
[1767004248677,0.02408147,88038.0,88029.0,0.0113732]
[1767004248885,0.05696,88048.0,88028.0,0.18432711]
[1767004249088,0.02408707,88047.0,88028.0,0.18432711]
[1767004249292,0.02408707,88046.0,88034.0,0.0113725]
[1767004249481,0.02408707,88045.0,88034.0,0.0113725]
[1767004249685,0.02408707,88044.0,88034.0,0.0113725]
[1767004249889,0.02408707,88043.0,88034.0,0.0113725]
[1767004250090,0.02408707,88042.0,88034.0,0.0113725]
[1767004250392,0.02408707,88041.0,88034.0,0.0113725]
[1767004250583,0.02408707,88040.0,88034.0,0.0113725]
[1767004250783,0.02408707,88039.0,88034.0,0.0113725]
[1767004251083,0.02408707,88038.0,88034.0,0.0113725]
[1767004251283,0.05696,88048.0,88032.0,0.0113728]
[1767004251483,0.02409043,88047.0,88032.0,0.0113728]
[1767004251683,0.02409043,88046.0,88032.0,0.0113728]
[1767004251886,0.02409043,88045.0,88032.0,0.0113728]
[1767004252087,0.02409043,88044.0,88032.0,0.0113728]
[1767004252388,0.02409043,88043.0,88032.0,0.0113728]
[1767004252578,0.02409043,88042.0,88029.0,0.0113731]
[1767004252779,0.02409043,88041.0,88030.0,0.18415673]
[1767004252979,0.05696,88048.0,88030.0,0.18415673]
[1767004252980,0.02409043,88040.0,88031.0,0.011373]
[1767004253284,0.02409043,88039.0,88031.0,0.011373]
[1767004253594,0.02409043,88038.0,88031.0,0.011373]
[1767004253796,0.02409043,88037.0,88031.0,0.068333]
[1767004253993,0.02409043,88036.0,88031.0,0.068333]
[1767004254194,0.05696,88048.0,88031.0,0.068333]
[1767004254394,0.0241066,88047.0,88031.0,0.068333]
[1767004254598,0.0241066,88046.0,88031.0,0.05696]
[1767004254897,0.0241066,88045.0,88031.0,0.05696]
[1767004255093,0.0241066,88044.0,88031.0,0.05696]
[1767004255393,0.0241066,88043.0,88031.0,0.05696]
[1767004255694,0.0241066,88042.0,88031.0,0.05696]
[1767004255895,0.0241066,88041.0,88031.0,0.05696]
[1767004256096,0.0241066,88040.0,88032.0,0.0113729]
[1767004256294,0.0241066,88039.0,88032.0,0.0113729]
[1767004256496,0.0241066,88039.0,88031.0,0.05696]
[1767004256497,0.0241066,88038.0,88034.0,0.0113725]
[1767004256681,0.0241066,88037.0,88034.0,0.0113725]
[1767004256888,0.05696,88048.0,88033.0,0.0113727]
[1767004257201,0.05696,88048.0,88036.0,0.0113723]
[1767004257586,0.05696,88048.0,88035.0,0.0113725]
[1767004257787,0.05696,88048.0,88031.0,0.05696]
[1767004257988,0.011371,88047.0,88031.0,0.068333]
[1767004258191,0.05696,88048.0,88031.0,0.068333]
[1767004258386,0.0683308,88048.0,88031.0,0.068333]
[1767004258587,0.0683308,88048.0,88031.0,0.05696]
[1767004259086,0.0113711,88046.0,88031.0,0.05696]
[1767004259488,0.05696,88048.0,88031.0,0.05696]
[1767004260497,0.05696,88048.0,88032.0,0.0113728]
[1767004263304,0.05696,88048.0,88031.0,0.05696]
[1767004263497,0.05696,88048.0,88028.0,0.00017038]
[1767004263696,0.0113721,88038.0,88028.0,0.00017038]
[1767004264604,0.05696,88040.0,88028.0,0.00017038]
[1767004265398,0.05696,88040.0,88021.0,0.05696]
[1767004266202,0.011372,88039.0,88021.0,0.05696]
[1767004266405,0.011372,88039.0,88022.0,0.0113742]
[1767004267010,0.011372,88039.0,88021.0,0.05713038]
[1767004268797,0.02384935,88038.0,88021.0,0.05713038]
[1767004269103,0.02384935,88037.0,88021.0,0.05713038]
[1767004269305,0.00017038,88038.0,88021.0,0.05713038]
[1767004269306,0.02384935,88036.0,88021.0,0.05713038]
[1767004269494,0.02384935,88035.0,88021.0,0.05713038]
[1767004269695,0.02384935,88034.0,88021.0,0.05713038]
[1767004269897,0.02384935,88033.0,88021.0,0.05713038]
[1767004270196,0.02384935,88032.0,88021.0,0.05713038]
[1767004270397,0.00017038,88038.0,88021.0,0.05713038]
[1767004270591,0.00017038,88038.0,88021.0,0.00017038]
[1767004270592,0.02384366,88037.0,88021.0,0.00017038]
[1767004270798,0.011373,88031.0,88018.0,0.09664]
[1767004270997,0.0113733,88029.0,88016.0,0.05696]
[1767004271196,0.02384366,88028.0,88016.0,0.05696]
[1767004271398,0.02384366,88027.0,88016.0,0.05696]
[1767004271604,0.02384366,88026.0,88016.0,0.05696]
[1767004271806,0.02384366,88025.0,88016.0,0.05696]
[1767004272007,0.02384366,88024.0,88012.0,0.00017038]
[1767004272207,0.02384366,88023.0,88012.0,0.00017038]
[1767004272508,0.02384366,88022.0,88012.0,0.00017038]
[1767004272708,0.02384366,88021.0,88012.0,0.00017038]
[1767004272913,0.02384366,88020.0,88012.0,0.00017038]
[1767004273209,0.02384366,88019.0,88012.0,0.00017038]
[1767004273409,0.02384366,88018.0,88012.0,0.00017038]
[1767004273607,0.0113735,88028.0,88012.0,0.00017038]
[1767004273908,0.02379395,88027.0,88012.0,0.00017038]
[1767004274101,0.02379395,88026.0,88012.0,0.00017038]
[1767004274296,0.02379395,88025.0,88012.0,0.00017038]
[1767004274511,0.02379395,88024.0,88012.0,0.00017038]
[1767004274696,0.02379395,88023.0,88012.0,0.00017038]
[1767004274904,0.02379395,88022.0,88012.0,0.00017038]
[1767004275201,0.02379395,88021.0,88012.0,0.00017038]
[1767004275406,0.02379395,88020.0,88012.0,0.00017038]
[1767004275604,0.02379395,88019.0,88012.0,0.00017038]
[1767004275803,0.0113735,88028.0,88012.0,0.00017038]
[1767004276000,0.02378574,88027.0,88012.0,0.00017038]
[1767004276308,0.02378574,88026.0,88012.0,0.00017038]
[1767004276507,0.02378574,88025.0,88012.0,0.00017038]
[1767004276698,0.02378574,88024.0,88012.0,0.00017038]
[1767004276899,0.02378574,88023.0,88012.0,0.00017038]
[1767004277100,0.02378574,88022.0,88012.0,0.00017038]
[1767004277294,0.0113735,88028.0,88012.0,0.00017038]
[1767004277295,0.02378574,88021.0,88012.0,0.00017038]
[1767004277495,0.02378574,88020.0,88012.0,0.00017038]
[1767004277701,0.0113735,88028.0,88012.0,0.00017038]
[1767004277908,0.02378487,88027.0,88012.0,0.00017038]
[1767004278209,0.02378487,88026.0,88012.0,0.00017038]
[1767004278399,0.02378487,88025.0,88012.0,0.00017038]
[1767004278599,0.02378487,88024.0,88012.0,0.00017038]
[1767004278798,0.02378487,88023.0,88012.0,0.00017038]
[1767004279005,0.02378487,88022.0,88012.0,0.00017038]
[1767004279211,0.02378487,88021.0,88012.0,0.00017038]
[1767004279410,0.02378487,88020.0,88012.0,0.00017038]
[1767004279612,0.0113735,88028.0,88012.0,0.00017038]
[1767004279812,0.0113737,88026.0,88012.0,0.00017038]
[1767004280011,0.05696,88029.0,88012.0,0.00017038]
[1767004280012,0.0237817,88025.0,88012.0,0.00017038]
[1767004280198,0.0237817,88024.0,88012.0,0.00017038]
[1767004280403,0.0237817,88023.0,88012.0,0.00017038]
[1767004280713,0.05696,88029.0,88012.0,0.00017038]
[1767004280714,0.0237817,88022.0,88012.0,0.00017038]
[1767004280918,0.05696,88029.0,88012.0,0.00017038]
[1767004280919,0.0237817,88021.0,88012.0,0.00017038]
[1767004281209,0.0237817,88020.0,88012.0,0.00017038]
[1767004281403,0.0113736,88027.0,88012.0,0.00017038]
[1767004281603,0.02375777,88026.0,88012.0,0.00017038]
[1767004281908,0.02375777,88025.0,88012.0,0.00017038]
[1767004282110,0.05696,88029.0,88012.0,0.00017038]
[1767004282111,0.02375777,88024.0,88012.0,0.00017038]
[1767004282308,0.02375777,88023.0,88012.0,0.00017038]
[1767004282510,0.02375777,88022.0,88012.0,0.00017038]
[1767004282815,0.02375777,88021.0,88012.0,0.00017038]
[1767004283015,0.02375777,88020.0,88012.0,0.00017038]
[1767004283213,0.05696,88029.0,88012.0,0.00017038]
[1767004283413,0.02374684,88028.0,88012.0,0.00017038]
[1767004283614,0.02374684,88027.0,88012.0,0.00017038]
[1767004283912,0.02374684,88026.0,88012.0,0.00017038]
[1767004284113,0.02374684,88025.0,88012.0,0.00017038]
[1767004284312,0.02374684,88024.0,88012.0,0.00017038]
[1767004284505,0.02374684,88023.0,88012.0,0.00017038]
[1767004284704,0.02374684,88022.0,88012.0,0.00017038]
[1767004284907,0.02374684,88021.0,88012.0,0.00017038]
[1767004285102,0.057,88027.0,88012.0,0.00017038]
[1767004285308,0.02372748,88026.0,88012.0,0.00017038]
[1767004285511,0.02372748,88025.0,88012.0,0.00017038]
[1767004285819,0.02372748,88024.0,88012.0,0.00017038]
[1767004286013,0.02372748,88023.0,88012.0,0.00017038]
[1767004286318,0.057,88027.0,88012.0,0.00017038]
[1767004291817,0.0113737,88026.0,88012.0,0.00017038]
[1767004292119,0.057,88027.0,88012.0,0.00017038]
[1767004292510,0.0683735,88027.0,88012.0,0.00017038]
[1767004292915,0.057,88027.0,88012.0,0.01154578]
[1767004301108,0.057,88027.0,88012.0,0.00017038]
[1767004301717,0.11780451,88027.0,88012.0,0.00017038]
[1767004302022,0.0113736,88026.0,88012.0,0.00017038]
[1767004302223,0.11780451,88027.0,88012.0,0.00017038]
[1767004302412,0.06080451,88026.0,88012.0,0.00017038]
[1767004303522,0.0113738,88025.0,88012.0,0.00017038]
[1767004304325,0.011374,88023.0,88012.0,0.00017038]
[1767004307721,0.06080451,88026.0,88012.0,0.00017038]
[1767004308629,0.0113739,88024.0,88012.0,0.00017038]
[1767004312029,0.11780451,88027.0,87983.0,0.09664]
[1767004312225,0.18425233,88000.0,87975.0,0.027]
[1767004312529,0.18425233,88000.0,87966.0,0.09664]
[1767004312530,0.0850942,87999.0,87966.0,0.09664]
[1767004312729,0.0113801,87976.0,87965.0,0.09664]
[1767004313025,0.0113804,87974.0,87966.0,0.057]
[1767004313228,0.0280942,87973.0,87967.0,0.057]
[1767004313424,0.0280942,87972.0,87968.0,0.057]
[1767004313627,9.341e-05,87975.0,87968.0,0.057]
[1767004313828,0.0280236,87974.0,87968.0,0.057]
[1767004314024,0.0280236,87973.0,87966.0,6e-08]
[1767004314225,0.0113809,87971.0,87967.0,0.03008]
[1767004314529,0.00017048,87979.0,87966.0,0.03008006]
[1767004314731,0.0113784,87990.0,87966.0,0.07146136]